bitfinex-derivatives/quotes_ETHF0:USTF0_20251210
["timestamp","ask_amount","ask_price","bid_price","bid_amount"]
[1765390422515,3.2078,3369.5,3369.4,16.13449]
[1765390422716,3.2078,3369.9,3369.8,4.1951]
[1765390422922,4.09805443,3369.9,3369.8,4.1951]
[1765390423316,3.2078,3369.9,3369.8,4.34347]
[1765390423517,0.00223984,3370.3,3370.2,4.1951]
[1765390423518,5.22683984,3370.3,3370.2,4.1951]
[1765390423822,6.11720193,3370.3,3370.2,16.13446]
[1765390424021,4.10040193,3370.3,3370.2,16.13446]
[1765390425425,4.10037208,3370.3,3370.2,16.13446]
[1765390426121,4.10037208,3370.3,3370.2,4.34346]
[1765390426320,4.10037208,3370.3,3370.2,10.42446]
[1765390427816,3.21003984,3370.3,3370.2,10.42446]
[1765390428216,0.00223984,3370.3,3370.2,10.42446]
[1765390428817,3.2078,3370.7,3370.6,4.34344]
[1765390429728,3.21112639,3370.7,3370.6,4.34344]
[1765390430028,3.21112639,3370.7,3370.6,16.13344]
[1765390431023,2.639e-05,3370.7,3370.6,16.13344]
[1765390431323,1.25,3371.5,3371.4,0.7786]
[1765390431528,1.25,3371.5,3371.4,15.7754]
[1765390432128,1.25367936,3371.5,3371.4,15.7754]
[1765390432525,1.25367936,3371.5,3371.4,15.9237]
[1765390433119,0.00367936,3371.5,3371.4,15.9237]
[1765390433422,1.25367936,3371.5,3371.4,15.1451]
[1765390433622,3.27047936,3371.5,3371.4,16.8669]
[1765390433830,1.25367936,3371.5,3371.4,16.8659]
[1765390434529,0.00367936,3371.5,3371.4,16.8659]
[1765390436127,1.25367936,3371.5,3371.1,0.00445348]
[1765390436431,2.0168,3371.2,3371.1,1.59165348]
[1765390436620,2.0168,3371.2,3371.1,10.13565348]
[1765390437026,5.38937936,3371.5,3371.4,1.565]
[1765390437227,4.1357,3371.2,3371.1,8.54845348]
[1765390437423,4.1357,3371.2,3371.1,0.00445348]
[1765390437628,4.1357,3371.2,3371.1,8.54345348]
[1765390438328,4.1357,3371.2,3371.1,11.79045348]
[1765390438827,4.1357,3371.2,3371.1,12.53805348]
[1765390439229,4.1357,3371.2,3371.1,11.79045348]
[1765390440330,4.1357,3371.2,3371.1,0.00445348]
[1765390440636,4.1357,3371.2,3371.1,3.01045348]
[1765390442738,10.1357,3371.2,3371.1,0.00445348]
[1765390443040,4.2149,3370.2,3370.1,0.14836]
[1765390443246,4.2149,3370.2,3370.1,3.91136]
[1765390443542,5.5131,3370.5,3370.4,0.6422]
[1765390444034,4.2149,3370.2,3370.1,3.91581348]
[1765390444339,4.2149,3370.2,3370.1,10.56581348]
[1765390444535,4.2149,3370.2,3370.1,11.80681348]
[1765390444835,4.2149,3370.2,3370.1,12.55931348]
[1765390445037,4.2149,3370.2,3370.1,13.15881348]
[1765390445236,4.2149,3370.2,3370.1,12.55931348]
[1765390445733,4.2149,3370.2,3370.1,0.00445348]
[1765390445938,4.2149,3370.2,3370.1,11.79045348]
[1765390446334,4.2149,3370.2,3370.1,0.00445348]
[1765390446535,7.4227,3370.2,3370.1,7.11045348]
[1765390447041,7.4227,3370.2,3370.1,10.39845348]
[1765390447342,7.4227,3370.2,3370.1,0.00445348]
[1765390447635,7.4227,3370.2,3370.1,1.87545348]
[1765390447842,4.2149,3369.6,3369.5,2.36249]
[1765390448038,4.2149,3369.6,3369.5,0.14839]
[1765390448541,4.2149,3369.6,3369.5,12.73909]
[1765390449842,2.0579,3369.6,3369.5,12.73909]
[1765390451339,4.1242,3369.6,3369.5,12.73909]
[1765390452744,8.7635,3370.0,3369.9,2.1362]
[1765390452939,6.6972,3370.0,3369.9,4.3269]
[1765390453340,5.5557,3370.0,3369.9,4.3269]
[1765390454340,4.2575,3369.7,3369.6,2.1362]
[1765390454648,4.2575,3369.7,3369.6,4.3269]
[1765390455344,4.2575,3369.7,3369.6,2.1362]
[1765390455553,4.2575,3369.4,3369.3,2.13992863]
[1765390455743,4.2575,3369.4,3369.3,6.21392863]
[1765390456047,4.2575,3369.4,3369.3,8.40462863]
[1765390456341,5.5557,3370.0,3369.9,2.1362]
[1765390456543,1.2982,3370.0,3369.9,4.3269]
[1765390457750,3.4894,3370.0,3369.9,4.3269]
[1765390458447,4.506,3370.5,3369.6,3.2078]
[1765390458448,8.7635,3370.5,3370.4,2.1362]
[1765390458655,8.7635,3370.5,3369.9,0.14837]
[1765390459041,3.4921,3370.0,3369.9,4.47527]
[1765390459557,1.3009,3370.0,3369.9,4.47527]
[1765390460045,5.5584,3370.0,3369.9,4.47527]
[1765390460246,3.4921,3370.0,3369.9,4.47527]
[1765390461965,1.3009,3370.0,3369.9,4.47527]
[1765390462261,3.4921,3370.0,3369.9,4.47527]
[1765390464454,1.3009,3370.0,3369.9,4.47527]
[1765390464854,3.4921,3370.0,3369.9,4.47527]
[1765390466258,1.3009,3370.0,3369.9,4.47527]
[1765390466662,3.4921,3370.0,3369.9,4.47527]
[1765390467468,8.7635,3370.5,3370.4,4.3269]
[1765390467665,9.69516994,3370.5,3370.4,4.3269]
[1765390467862,9.69516994,3370.5,3370.4,2.1362]
[1765390468062,9.69516994,3370.5,3369.9,4.17027]
[1765390468063,5.248,3370.0,3369.9,4.17027]
[1765390468264,5.248,3370.0,3369.9,15.95727]
[1765390471070,5.248,3370.0,3369.9,13.99707]
[1765390471672,5.248,3370.0,3369.9,15.95727]
[1765390471967,5.248,3370.0,3369.9,2.21007]
[1765390472167,4.0567,3369.4,3369.3,2.11232863]
[1765390472465,6.428,3370.0,3369.9,2.0617]
[1765390472670,7.3617115,3370.0,3369.9,4.0219]
[1765390472871,9.3895115,3370.0,3369.9,4.0219]
[1765390473067,6.1817115,3370.0,3369.9,4.0219]
[1765390474369,5.248,3369.5,3369.4,4.17029]
[1765390475569,1.1913,3369.5,3369.4,15.95729]
[1765390476273,3.2202,3369.5,3369.4,15.95729]
[1765390476464,6.21924046,3369.5,3369.4,15.95729]
[1765390476665,6.21924046,3369.5,3369.4,13.99709]
[1765390477075,6.21924046,3369.5,3369.4,15.95729]
[1765390477877,4.0567,3369.4,3369.3,0.00372863]
[1765390478067,5.02794046,3369.4,3369.3,11.79072863]
[1765390478268,5.02794046,3369.4,3369.3,13.85242863]
[1765390478466,5.02794046,3369.4,3369.3,15.81262863]
[1765390479277,0.97124046,3369.4,3369.3,15.81262863]
[1765390479978,3.2202,3369.5,3369.4,4.0107]
[1765390480175,4.1913885,3369.5,3369.4,4.0107]
[1765390480576,2.1624885,3369.5,3369.4,4.0107]
[1765390480783,2.1624885,3369.5,3369.4,5.47830868]
[1765390480979,2.1624885,3369.5,3369.4,4.0107]
[1765390481280,4.1913885,3369.5,3369.4,4.0107]
[1765390482777,6.2191885,3369.5,3369.4,4.0107]
[1765390484087,6.2191885,3369.5,3369.4,13.8375]
[1765390484281,4.0567,3369.4,3369.2,0.00445348]
[1765390484480,4.0567,3368.9,3368.8,3.2078]
[1765390484687,6.4979457,3368.9,3368.8,5.8678]
[1765390484985,6.4979457,3368.9,3368.8,3.2078]
[1765390485187,6.4979457,3368.9,3368.8,13.8638]
[1765390485388,5.03348919,3368.9,3368.8,13.86686018]
[1765390486893,6.50109787,3368.9,3368.8,11.79006018]
[1765390487085,6.50109787,3368.9,3368.8,0.00306018]
[1765390487284,6.50109787,3368.9,3368.8,11.79006018]
[1765390488891,6.50109787,3368.9,3368.8,0.00306018]
[1765390489092,6.50109787,3368.9,3368.8,11.79106018]
[1765390489493,5.03348919,3368.9,3368.8,11.79106018]
[1765390490592,5.03348919,3368.9,3368.8,16.98406886]
[1765390490789,3.00568919,3368.9,3368.8,16.98406886]
[1765390490994,5.03348919,3368.9,3368.8,15.51646018]
[1765390497204,5.03348919,3368.9,3368.8,11.79106018]
[1765390497402,5.03348919,3368.9,3368.8,13.48946018]
[1765390497997,6.50109787,3368.9,3368.8,13.48946018]
[1765390499399,6.50109787,3368.9,3368.8,0.00306018]
[1765390499599,6.50109787,3368.9,3368.8,11.79106018]
[1765390500303,6.50109787,3368.9,3368.3,3.2078]
[1765390500304,1.108,3368.5,3368.3,3.2078]
[1765390500504,2.439048,3368.4,3367.4,0.14848]
[1765390500708,1.108,3367.5,3367.4,6.64008]
[1765390500903,1.108,3367.5,3367.4,14.98508]
[1765390501302,1.108,3367.5,3367.4,14.98829007]
[1765390501705,1.108,3367.5,3367.4,6.64329007]
[1765390501901,4.7084,3367.5,3367.4,6.64329007]
[1765390502102,4.7084,3367.5,3367.4,13.33829007]
[1765390502407,6.17600868,3367.5,3367.4,0.00321007]
[1765390502603,3.6004,3367.2,3367.1,1.66155348]
[1765390502803,4.57080182,3367.2,3367.1,5.03965348]
[1765390503199,3.6004,3367.2,3367.1,3.38255348]
[1765390503498,3.6004,3367.2,3367.1,1.72545348]
[1765390503703,3.6004,3367.2,3367.1,1.72839273]
[1765390504107,3.6004,3367.2,3367.1,3.36659273]
[1765390505399,1.108,3367.5,3367.4,3.2024]
[1765390505599,1.108,3367.5,3367.4,4.67000868]
[1765390506204,4.7084,3367.5,3367.4,1.6012]
[1765390506408,0.00445348,3367.8,3367.4,7.17808868]
[1765390506600,0.00445348,3367.8,3367.7,7.84040868]
[1765390506910,0.00445348,3367.8,3367.7,6.3728]
[1765390507210,3.60485348,3367.8,3367.7,3.165]
[1765390508399,3.6004,3367.6,3367.5,0.14847]
[1765390508602,3.6004,3367.6,3367.5,8.43947]
[1765390508810,3.6004,3367.4,3367.3,3.2078]
[1765390509010,3.6004,3367.4,3367.3,16.5431]
[1765390509211,1.108,3367.5,3367.4,3.0192]
[1765390509416,2.7665,3367.5,3367.4,3.0192]
[1765390511305,0.00445348,3367.8,3367.7,2.9824]
[1765390511507,0.00445348,3367.8,3367.7,4.45000868]
[1765390512713,0.00445348,3367.8,3367.7,16.24000868]
[1765390514711,0.00315217,3368.9,3368.8,2.8728]
[1765390514906,0.65305545,3368.9,3368.8,15.32140868]
[1765390515106,4.4281,3369.5,3368.8,12.44860868]
[1765390515412,4.4281,3369.5,3368.9,1.46760868]
[1765390515813,4.43255348,3369.5,3369.0,3.2078]
[1765390516109,4.43637431,3369.5,3369.4,1.4183]
[1765390516504,5.90398299,3369.5,3369.0,3.2078]
[1765390516706,4.43637431,3369.5,3369.0,3.2078]
[1765390517407,1.10607431,3369.5,3369.4,2.8738]
[1765390517607,4.43637431,3369.5,3369.4,1.4369]
[1765390517803,4.43637431,3369.5,3369.4,2.8738]
[1765390518007,7.64417431,3369.5,3369.4,3.664]
[1765390519116,7.64417431,3369.5,3369.4,5.0827]
[1765390519315,5.97237431,3369.5,3369.4,6.4833]
[1765390519516,4.31387431,3369.5,3369.4,6.4833]
[1765390519821,7.64417431,3369.5,3369.4,6.4833]
[1765390520017,5.97237431,3369.5,3369.4,6.4833]
[1765390520419,7.64417431,3369.5,3369.4,6.4833]
[1765390521416,7.64417431,3369.5,3369.4,14.0213]
[1765390521627,7.64417431,3369.5,3369.4,14.6063]
[1765390521918,5.97237431,3369.5,3369.4,14.6063]
[1765390523622,4.31387431,3369.5,3369.4,14.6063]
[1765390523922,5.97237431,3369.5,3369.4,14.6063]
[1765390524820,0.00827431,3369.5,3369.4,17.96249]
[1765390525218,1.10607431,3369.5,3369.4,6.17549]
[1765390525520,4.43637431,3369.5,3369.4,17.96149]
[1765390525924,2.76457431,3369.5,3369.4,17.96149]
[1765390526312,1.10607431,3369.5,3369.4,17.96149]
[1765390526511,4.43637431,3369.5,3369.4,3.2078]
[1765390526712,3.3303,3369.1,3369.0,3.44872223]
[1765390526917,3.3303,3369.1,3369.0,0.24092223]
[1765390527110,6.5381,3369.1,3369.0,2.51992223]
[1765390527513,4.8663,3369.1,3369.0,5.03612223]
[1765390527718,1.10607431,3369.5,3369.0,4.7952]
[1765390527925,4.30534306,3369.4,3369.3,1.2581]
[1765390528122,3.3303,3369.4,3369.3,1.2581]
[1765390528920,3.3303,3369.4,3369.0,2.279]
[1765390529119,4.3336,3369.0,3368.9,0.00445348]
[1765390529323,4.3336,3369.0,3368.9,4.23745348]
[1765390529617,3.2078,3369.1,3369.0,2.4426]
[1765390530309,6.5058,3369.1,3369.0,1.2213]
[1765390530819,1.10607431,3369.5,3369.0,2.4252]
[1765390531011,4.3101991,3369.4,3369.3,1.1865]
[1765390531416,4.3336,3369.0,3368.9,6.61045348]
[1765390531713,4.3336,3369.0,3368.9,4.23745348]
[1765390531910,4.3336,3369.0,3368.9,5.42395348]
[1765390533121,4.3336,3369.0,3368.9,6.59315348]
[1765390533321,4.3336,3369.0,3368.9,2.36015348]
[1765390533623,4.3336,3369.0,3368.9,13.55915348]
[1765390534023,4.3336,3369.0,3368.9,0.00445348]
[1765390534223,4.3336,3369.0,3368.9,11.78945348]
[1765390535220,1.0356,3369.0,3368.9,14.04175348]
[1765390535424,4.3336,3369.0,3368.9,11.78945348]
[1765390535621,4.3336,3369.0,3368.9,11.78845348]
[1765390535918,4.3336,3369.0,3368.9,0.00445348]
[1765390536119,5.34760771,3369.0,3368.9,0.00445348]
[1765390536324,3.298,3368.3,3368.2,1.34230413]
[1765390536519,3.298,3368.3,3368.2,9.35930413]
[1765390536820,1.0356,3368.5,3368.4,2.21]
[1765390537323,1.0356,3369.0,3368.9,2.1929]
[1765390537523,5.34819723,3369.0,3368.9,1.105]
[1765390537723,2.6197,3368.5,3368.4,5.3836]
[1765390537923,4.3336,3368.5,3368.4,14.7096]
[1765390538122,2.6197,3368.5,3368.4,14.7096]
[1765390538321,1.0356,3368.5,3368.4,14.7096]
[1765390540024,4.3336,3369.0,3368.9,2.1096]
[1765390540223,5.34894675,3369.0,3368.9,2.1096]
[1765390541622,5.34894675,3369.0,3368.9,1.0717]
[1765390541820,1.0356,3368.5,3368.4,14.576]
[1765390542420,4.3336,3369.0,3368.9,1.0211]
[1765390542620,4.3336,3369.0,3368.9,2.0254]
[1765390542621,1.01235958,3369.0,3368.9,2.0254]
[1765390543429,2.04795958,3369.0,3368.9,2.0254]
[1765390543930,3.63205958,3369.0,3368.9,2.0254]
[1765390544235,5.34595958,3369.0,3368.9,13.8094]
[1765390545130,3.63205958,3369.0,3368.9,13.8094]
[1765390546033,2.04795958,3369.0,3368.9,13.8094]
[1765390546544,1.01235958,3369.0,3368.9,13.95781]
[1765390546832,1.10607431,3369.5,3369.4,1.8758]
[1765390547031,2.11800757,3369.5,3369.4,1.8758]
[1765390547432,2.11800757,3369.5,3369.4,5.0836]
[1765390549235,3.70210757,3369.5,3369.4,5.0836]
[1765390550225,1.02020757,3369.5,3369.4,5.0836]
[1765390550635,2.05580757,3369.5,3369.4,5.0836]
[1765390554444,3.63990757,3369.5,3369.4,5.0836]
[1765390555038,2.05580757,3369.5,3369.4,5.0836]
[1765390555239,3.63990757,3369.5,3369.4,5.0836]
[1765390555439,5.35380757,3369.5,3369.4,5.0836]
[1765390556041,3.63990757,3369.5,3369.4,5.0836]
[1765390556436,2.05580757,3369.5,3369.4,5.0836]
[1765390556627,3.63990757,3369.5,3369.4,5.0836]
[1765390557939,3.0993,3368.7,3368.6,0.7418]
[1765390558143,4.0109,3368.5,3368.4,1.4836]
[1765390558344,0.9116,3368.5,3368.4,2.3846]
[1765390560444,4.0109,3369.0,3368.9,0.7418]
[1765390560643,4.0109,3368.5,3368.4,0.94374]
[1765390560847,4.0109,3368.5,3368.4,3.72444]
[1765390561247,4.0109,3368.5,3368.4,11.02874]
[1765390561447,0.9116,3368.5,3368.4,11.80804]
[1765390561647,2.4906,3368.5,3368.4,11.80804]
[1765390562950,4.0109,3368.5,3368.4,12.72574]
[1765390563244,4.0109,3368.5,3368.4,13.47324]
[1765390563849,4.0109,3368.5,3368.4,0.14844]
[1765390564159,3.0993,3368.2,3368.1,3.21225348]
[1765390564349,3.0993,3368.2,3368.1,6.20325348]
[1765390564553,3.0993,3368.2,3368.1,6.93495348]
[1765390565452,4.09190528,3368.2,3368.1,13.39325348]
[1765390565849,4.09190528,3368.2,3368.1,14.10915348]
[1765390566052,0.9116,3368.5,3368.1,14.10915348]
[1765390566053,4.0109,3368.5,3368.4,0.7001]
[1765390566254,5.00350755,3368.5,3368.4,0.7001]
[1765390566454,3.0993,3368.2,3368.1,14.09335348]
[1765390566753,4.09190755,3368.2,3368.1,13.39325348]
[1765390567052,4.09190755,3368.2,3368.1,14.09335348]
[1765390567251,4.09190755,3368.2,3368.1,0.00445348]
[1765390567553,4.09190755,3368.2,3368.1,7.66145348]
[1765390568152,4.09190755,3368.2,3368.1,0.00445348]
[1765390568461,4.09190755,3368.2,3367.6,3.2078]
[1765390568462,3.0993,3367.7,3367.6,3.2078]
[1765390568756,3.0993,3367.3,3367.2,6.2697]
[1765390569147,1.579,3367.3,3367.2,13.0597]
[1765390570558,3.1041,3367.3,3367.2,13.0597]
[1765390571057,1.579,3367.3,3367.2,13.0597]
[1765390571356,3.1041,3367.3,3367.2,14.9118]
[1765390571750,1.579,3367.3,3367.2,14.9118]
[1765390572150,4.88005348,3367.6,3367.5,3.1288]
[1765390572350,1.67225348,3367.6,3367.5,3.1288]
[1765390572655,0.00445348,3367.6,3367.5,4.0526]
[1765390573957,0.00445348,3367.6,3367.5,4.20108]
[1765390576250,0.00445348,3367.6,3367.5,15.06128]
[1765390576455,0.00445348,3367.6,3367.5,15.47928]
[1765390577150,3.2078,3368.4,3368.3,3.1288]
[1765390577151,4.8756,3368.4,3368.3,3.1288]
[1765390577550,6.4007,3368.8,3368.7,1.5237]
[1765390577750,3.2078,3369.2,3368.7,10.9639582]
[1765390577952,4.8756,3369.2,3369.1,3.1288]
[1765390578158,7.39534461,3369.2,3369.1,1.5237]
[1765390578653,7.39534461,3369.2,3368.7,9.532]
[1765390578962,7.39534461,3369.2,3368.7,12.6608]
[1765390578963,3.1929,3368.8,3368.7,12.6608]
[1765390579153,1.6678,3368.8,3368.7,12.6608]
[1765390579353,4.1374,3369.0,3368.9,1.5237]
[1765390579556,4.1374,3369.0,3368.9,3.1288]
[1765390580053,3.2078,3369.2,3369.1,3.1288]
[1765390580249,4.20273213,3369.2,3369.1,3.1288]
[1765390580451,3.2078,3369.2,3369.1,3.1288]
[1765390580762,0.00445348,3369.3,3369.2,3.1288]
[1765390581264,0.00445348,3369.3,3369.2,6.485]
[1765390581961,0.00382083,3369.5,3369.4,3.1288]
[1765390582960,0.00382083,3369.5,3369.4,4.5607582]
[1765390586363,1.67162083,3369.5,3369.4,3.1288]
[1765390586666,4.14122083,3369.5,3369.4,13.3047]
[1765390586971,2.61612083,3369.5,3369.4,14.9098]
[1765390587267,0.00382083,3369.5,3369.4,15.05819]
[1765390590362,1.67162083,3369.5,3369.4,15.05819]
[1765390591061,4.07412083,3369.5,3369.4,15.05819]
[1765390591264,4.07412083,3369.5,3369.4,15.05619]
[1765390591657,0.00382083,3369.5,3369.4,16.4881482]
[1765390596069,0.00445348,3369.8,3369.7,3.0796]
[1765390596271,0.00445348,3369.8,3369.7,7.7193582]
[1765390597059,0.00750872,3369.8,3369.7,7.72282863]
[1765390598070,0.00750872,3369.8,3369.7,7.95932831]
[1765390598268,0.00750872,3369.8,3369.7,19.73732831]
[1765390598664,0.00750872,3369.8,3369.7,18.30537011]
[1765390598867,0.00750872,3369.8,3369.7,20.69871994]
[1765390599065,1.25637167,3370.5,3370.4,3.22795]
[1765390599265,1.25637167,3370.5,3370.4,6.43575]
[1765390599870,1.25637167,3370.5,3370.4,18.21275]
[1765390600070,1.25979551,3370.5,3370.4,18.21275]
[1765390601968,1.5579,3370.0,3369.9,3.0796]
[1765390602167,1.5579,3370.0,3369.7,0.38835011]
[1765390602168,5.22019551,3370.5,3370.4,11.776]
[1765390603570,5.22019551,3370.5,3369.7,0.15185043]
[1765390603769,5.22019551,3370.5,3369.8,3.739]
[1765390603974,1.5579,3369.9,3369.8,3.0796]
[1765390604277,1.5579,3369.9,3369.8,13.7356]
[1765390604584,3.0617,3369.9,3369.8,1.4982]
[1765390604772,3.0617,3369.8,3369.7,0.00347043]
[1765390604970,1.5579,3369.8,3369.7,12.53507043]
[1765390605174,2.4566,3370.0,3369.9,3.0796]
[1765390605371,6.2695,3370.2,3370.1,3.0796]
[1765390605576,7.26454417,3370.2,3370.1,3.0796]
[1765390605880,7.26454417,3370.2,3369.7,9.45547043]
[1765390606073,1.5579,3369.8,3369.7,12.53507043]
[1765390606269,3.0617,3369.8,3369.7,3.08307043]
[1765390606672,3.0617,3369.8,3369.7,8.20507043]
[1765390606982,3.0617,3369.8,3369.7,3.08307043]
[1765390607173,3.0617,3369.8,3369.7,13.27667043]
[1765390607875,3.0617,3369.8,3369.7,14.85807043]
[1765390608180,4.05842152,3369.8,3369.7,1.50167043]
[1765390608368,4.05842152,3369.8,3369.7,4.25947043]
[1765390609178,4.05842152,3369.8,3369.7,0.00347043]
[1765390609581,7.26622152,3369.8,3369.7,3.38747043]
[1765390609980,7.26622152,3369.8,3369.7,10.06947043]
[1765390610180,7.26622152,3369.8,3369.7,11.56767043]
[1765390610582,7.26622152,3369.8,3369.7,10.06947043]
[1765390612688,5.76242152,3369.8,3369.7,13.14907043]
[1765390613084,7.26622152,3369.8,3369.7,13.14907043]
[1765390613289,7.26622152,3369.8,3369.7,10.06947043]
[1765390615085,7.26622152,3369.8,3369.7,11.56767043]
[1765390615493,7.26622152,3369.8,3369.7,13.14907043]
[1765390615989,7.26622152,3369.8,3369.7,11.56767043]
[1765390616990,7.26622152,3369.8,3369.7,10.06947043]
[1765390617184,3.9604,3369.0,3368.9,1.64661]
[1765390617389,3.0617,3368.7,3368.6,0.00445348]
[1765390617589,0.99742431,3368.7,3368.6,7.37848348]
[1765390618095,0.00445348,3369.0,3368.9,2.718]
[1765390618286,1.0018542,3369.0,3368.9,2.72025693]
[1765390619695,2.3087542,3369.0,3368.9,2.72025693]
[1765390620794,3.0680082,3369.4,3369.3,2.718]
[1765390620997,0.8987,3370.0,3369.3,2.718]
[1765390620998,3.2078,3369.8,3369.7,2.718]
[1765390621195,3.2078,3369.8,3369.7,4.18595367]
[1765390621393,5.8277,3369.8,3369.7,1.3558]
[1765390621593,5.8277,3369.8,3369.7,2.718]
[1765390622091,4.5147,3369.8,3369.7,4.18595367]
[1765390622298,3.2078,3369.8,3369.7,4.18595367]
[1765390622795,1.3069,3369.5,3369.4,2.86639]
[1765390622996,3.2078,3369.8,3369.4,2.86639]
[1765390623186,4.5147,3369.8,3369.7,2.718]
[1765390623391,4.5147,3369.8,3369.7,14.493]
[1765390623785,3.2078,3369.8,3369.7,14.493]
[1765390624193,5.8277,3369.8,3369.7,1.3558]
[1765390624393,5.8277,3369.8,3369.7,13.1308]
[1765390624589,5.8277,3369.8,3369.5,0.14839]
[1765390624790,5.8277,3369.8,3369.2,3.2078]
[1765390624791,2.6199,3369.3,3369.2,3.2078]
[1765390624993,0.7904,3369.5,3369.2,3.2078]
[1765390624994,0.7904,3369.5,3369.4,2.718]
[1765390625191,2.0973,3369.5,3369.4,2.718]
[1765390625594,3.2078,3369.8,3369.4,2.718]
[1765390625794,5.8277,3369.8,3369.7,2.718]
[1765390625997,3.5186,3370.0,3369.9,2.718]
[1765390626196,1.31135348,3370.1,3370.0,2.718]
[1765390627195,0.00445348,3370.1,3370.0,3.66377]
[1765390627695,1.25979551,3370.5,3370.4,2.86635]
[1765390627895,1.25979551,3370.5,3370.4,10.22835]
[1765390628399,1.25979551,3370.5,3370.4,11.61835]
[1765390628595,2.56669551,3370.5,3370.4,2.86635]
[1765390628799,4.67009551,3370.5,3370.4,14.64035]
[1765390629001,2.56669551,3370.5,3370.4,14.64035]
[1765390629304,1.25979551,3370.5,3370.4,14.64035]
[1765390630301,2.59449551,3370.5,3370.4,14.64035]
[1765390630700,2.7649,3370.1,3370.0,5.9541]
[1765390630999,1.3347,3370.1,3370.0,11.0771]
[1765390631195,1.25979551,3370.5,3370.4,2.7463]
[1765390631800,2.59449551,3370.5,3370.4,2.7463]
[1765390632001,1.25979551,3370.5,3370.4,2.7463]
[1765390632599,1.25979551,3370.5,3370.4,2.89465]
[1765390632796,2.23920735,3370.5,3370.4,2.89465]
[1765390632995,1.25979551,3370.5,3370.4,6.10245]
[1765390635605,0.00342384,3370.5,3370.4,6.10245]
[1765390635806,0.00342384,3370.5,3370.4,17.87445]
[1765390636008,0.00342384,3370.5,3370.4,6.10245]
[1765390636307,0.00342384,3370.5,3370.4,17.87445]
[1765390637613,1.3347,3371.5,3371.4,2.7463]
[1765390637803,2.31203946,3371.5,3371.4,2.7463]
[1765390638409,4.58723946,3371.5,3371.4,2.7463]
[1765390638604,4.58942723,3371.5,3371.4,2.74919419]
[1765390639508,4.58942723,3371.5,3371.4,0.00289419]
[1765390641919,4.58942723,3371.5,3371.4,11.77289419]
[1765390642215,4.58942723,3371.5,3371.4,0.00289419]
[1765390642520,4.58942723,3371.5,3371.4,11.77189419]
[1765390643416,4.58942723,3371.5,3371.4,0.00289419]
[1765390643618,4.58942723,3371.5,3371.4,11.77189419]
[1765390643816,4.58942723,3371.5,3371.4,0.00289419]
[1765390644313,4.58942723,3371.5,3371.1,0.00445348]
[1765390644314,2.7649,3371.2,3371.1,0.00445348]
[1765390644521,6.95003946,3371.2,3371.1,3.96745348]
[1765390645313,0.84718777,3371.5,3371.1,8.18330683]
[1765390645520,3.61208777,3371.5,3371.4,2.7463]
[1765390645820,4.58853975,3371.5,3371.4,2.7463]
[1765390646914,4.58853975,3371.5,3371.4,1.331]
[1765390647721,4.58885181,3371.5,3371.4,1.331]
[1765390648117,4.58885181,3371.5,3371.4,2.7463]
[1765390648717,0.00218777,3371.5,3371.4,4.21272932]
[1765390649321,0.00218777,3371.5,3371.4,4.36102932]
[1765390650327,3.40738777,3371.5,3371.4,7.6503]
[1765390650919,3.40738777,3371.5,3371.4,8.9784]
[1765390651118,3.40738777,3371.5,3371.4,10.3021]
[1765390651424,0.00218777,3371.5,3371.4,10.3021]
[1765390651725,1.27408777,3371.5,3371.4,10.3021]
[1765390652030,1.27408777,3371.5,3371.4,14.5671]
[1765390652516,1.2719,3372.4,3372.3,2.6518]
[1765390652724,3.2078,3372.8,3372.3,2.6518]
[1765390652725,2.6072,3372.8,3372.7,2.6518]
[1765390653021,3.5848851,3372.8,3372.7,13.0951]
[1765390653423,3.5848851,3372.8,3372.7,14.4188]
[1765390653617,3.58810669,3372.8,3372.7,14.4188]
[1765390655816,0.00322159,3372.8,3372.7,14.4188]
[1765390656521,0.00322159,3372.8,3372.7,14.56705]
[1765390657019,1.27512159,3372.8,3372.7,14.56705]
[1765390659530,2.61042159,3372.8,3372.7,14.56705]
[1765390659721,2.61042159,3372.8,3372.7,10.687]
[1765390659722,3.5786294,3372.8,3372.7,10.687]
[1765390659915,1.27512159,3372.8,3372.7,13.3388]
[1765390660314,3.57874222,3372.8,3372.7,14.4148]
[1765390660514,2.24344222,3372.8,3372.7,14.4148]
[1765390660923,3.57874222,3372.8,3372.7,14.4148]
[1765390661623,3.4052,3372.5,3372.4,1.47636]
[1765390661816,3.4052,3372.5,3372.4,0.14826]
[1765390662015,3.4052,3372.5,3371.9,3.2078]
[1765390662016,3.4052,3372.0,3371.9,5.8596]
[1765390662220,3.4052,3372.5,3372.4,2.6518]
[1765390662415,0.00322159,3372.8,3372.4,2.6518]
[1765390662624,2.61042159,3372.8,3372.7,1.3281]
[1765390662823,3.4052,3372.5,3372.4,2.6518]
[1765390663130,2.61042159,3372.8,3372.7,2.6518]
[1765390663428,3.57531157,3372.8,3372.7,2.6518]
[1765390664518,3.57531157,3372.8,3372.7,1.3281]
[1765390664718,3.57531157,3372.8,3372.7,6.3151]
[1765390664920,1.2719,3372.4,3372.3,6.00786]
[1765390665125,1.2719,3372.4,3372.3,16.65386]
[1765390665424,2.61042159,3372.8,3372.7,1.3281]
[1765390665626,3.5752195,3372.8,3372.7,1.3281]
[1765390665822,0.9680195,3372.8,3372.7,2.6518]
[1765390666726,0.9680195,3372.8,3372.7,5.8596]
[1765390667421,2.2399195,3372.8,3372.7,5.8596]
[1765390667628,2.2399195,3372.8,3372.7,6.00785]
[1765390668531,3.2078,3373.4,3373.3,2.6518]
[1765390669131,4.4797,3373.4,3373.3,2.6518]
[1765390669528,4.48302668,3373.4,3373.3,2.6518]
[1765390670032,1.27522668,3373.4,3373.3,2.6518]
[1765390670231,0.00332668,3373.4,3373.3,2.6518]
[1765390670833,0.00332668,3373.4,3373.3,2.80002]
[1765390672630,0.00332668,3373.4,3373.3,13.31702]
[1765390674134,0.00332668,3373.4,3373.3,2.80002]
[1765390674330,0.00332668,3373.4,3373.3,14.55902]
[1765390675833,0.00332668,3373.4,3373.3,2.80002]
[1765390676035,0.00332668,3373.4,3373.3,14.55802]